[Event "*** Titled Tuesday Blitz AM"]
[Site "Chess.com"]
[Date "2020.01.07"]
[Round "5"]
[White "Orest_Vovk"]
[Black "SHIVACalypso"]
[Result "1-0"]
[WhiteElo "2419"]
[BlackElo "2266"]
[TimeControl "180+2"]
[EndTime "10:05:31 PST"]
[Termination "Orest_Vovk won by resignation"]

1. d4 {[%clk 0:03:01.9]} 1... Nf6 {[%clk 0:02:57.7]} 2. Bf4 {[%clk 0:03:02.6]}
2... d5 {[%clk 0:02:54.4]} 3. e3 {[%clk 0:03:03.4]} 3... c5 {[%clk 0:02:53.7]}
4. c3 {[%clk 0:02:55.4]} 4... Nc6 {[%clk 0:02:52]} 5. Nd2 {[%clk 0:02:53.6]}
5... e6 {[%clk 0:02:53]} 6. Ngf3 {[%clk 0:02:49.8]} 6... h6 {[%clk 0:02:50]} 7.
Bd3 {[%clk 0:02:50.5]} 7... Nh5 {[%clk 0:02:48.1]} 8. Bg3 {[%clk 0:02:48.9]}
8... Nxg3 {[%clk 0:02:48.9]} 9. hxg3 {[%clk 0:02:49.7]} 9... Bd6 {[%clk
0:02:47.4]} 10. g4 {[%clk 0:02:49.2]} 10... e5 {[%clk 0:02:47.2]} 11. dxe5
{[%clk 0:02:47]} 11... Nxe5 {[%clk 0:02:49.1]} 12. Nxe5 {[%clk 0:02:48.2]} 12...
Bxe5 {[%clk 0:02:50.3]} 13. Bf5 {[%clk 0:02:47.9]} 13... Bxf5 {[%clk 0:02:39.1]}
14. gxf5 {[%clk 0:02:49.8]} 14... Bf6 {[%clk 0:02:40.5]} 15. Qa4+ {[%clk
0:02:48.3]} 15... Qd7 {[%clk 0:02:40.1]} 16. Qxd7+ {[%clk 0:02:49.3]} 16... Kxd7
{[%clk 0:02:42]} 17. e4 {[%clk 0:02:50.8]} 17... Rhe8 {[%clk 0:02:39]} 18. O-O-O
{[%clk 0:02:51.7]} 18... d4 {[%clk 0:02:36.6]} 19. cxd4 {[%clk 0:02:47]} 19...
cxd4 {[%clk 0:02:37.3]} 20. f4 {[%clk 0:02:42.9]} 20... Rec8+ {[%clk 0:02:24.7]}
21. Kb1 {[%clk 0:02:36.5]} 21... g6 {[%clk 0:02:25.1]} 22. e5 {[%clk 0:02:34.4]}
22... Be7 {[%clk 0:02:26]} 23. fxg6 {[%clk 0:02:32.5]} 23... fxg6 {[%clk
0:02:26.4]} 24. Rxh6 {[%clk 0:02:34]} 24... Rf8 {[%clk 0:02:24.3]} 25. g3 {[%clk
0:02:30.5]} 25... g5 {[%clk 0:02:25.3]} 26. Nb3 {[%clk 0:02:28.1]} 26... gxf4
{[%clk 0:02:23.4]} 27. Rxd4+ {[%clk 0:02:28.8]} 27... Ke8 {[%clk 0:02:24.2]} 28.
gxf4 {[%clk 0:02:30.5]} 28... Rd8 {[%clk 0:02:24.3]} 29. Rxd8+ {[%clk
0:02:24.1]} 29... Kxd8 {[%clk 0:02:24.5]} 30. Nd4 {[%clk 0:02:24]} 30... Ke8
{[%clk 0:02:18.4]} 31. Ne6 {[%clk 0:02:22.2]} 31... Rg8 {[%clk 0:02:18.3]} 32.
f5 {[%clk 0:02:21.5]} 32... Rg1+ {[%clk 0:02:18.6]} 33. Kc2 {[%clk 0:02:22.5]}
33... Re1 {[%clk 0:02:20.5]} 34. Rh8+ {[%clk 0:02:09.9]} 34... Kd7 {[%clk
0:02:12.3]} 35. Nf8+ {[%clk 0:01:52.8]} 35... Bxf8 {[%clk 0:02:12.8]} 36. Rxf8
{[%clk 0:01:48.3]} 36... Rxe5 {[%clk 0:02:11.6]} 37. Rf7+ {[%clk 0:01:49.4]}
37... Kc6 {[%clk 0:02:11.3]} 38. Kd3 {[%clk 0:01:47]} 38... Re1 {[%clk
0:02:07.5]} 39. f6 {[%clk 0:01:39.3]} 39... Rf1 {[%clk 0:02:07.5]} 40. Ke4
{[%clk 0:01:36.1]} 40... Kb6 {[%clk 0:02:07.8]} 41. Ke5 {[%clk 0:01:35.1]} 41...
Re1+ {[%clk 0:02:07.7]} 42. Kf5 {[%clk 0:01:35.9]} 42... Re2 {[%clk 0:02:08.6]}
43. Re7 {[%clk 0:01:35.2]} 43... Rf2+ {[%clk 0:02:08.5]} 44. Kg6 {[%clk
0:01:33.4]} 44... Rxb2 {[%clk 0:02:10.4]} 45. f7 {[%clk 0:01:31.8]} 45... Rg2+
{[%clk 0:02:10.6]} 46. Kh7 {[%clk 0:01:30.7]} 46... Rh2+ {[%clk 0:02:10.9]} 47.
Kg7 {[%clk 0:01:26.8]} 47... Rg2+ {[%clk 0:02:11.9]} 48. Kf8 {[%clk 0:01:20.3]}
48... Rxa2 {[%clk 0:02:11.7]} 49. Ke8 {[%clk 0:01:16.7]} 49... Rf2 {[%clk
0:02:12.2]} 50. f8=R {[%clk 0:01:15]} 50... Rxf8+ {[%clk 0:02:14.1]} 51. Kxf8
{[%clk 0:01:16.1]} 51... a5 {[%clk 0:02:14.4]} 52. Kf7 {[%clk 0:01:17]} 52... a4
{[%clk 0:02:06.8]} 53. Ke6 {[%clk 0:01:16]} 53... Kc6 {[%clk 0:02:08.2]} 54. Ke5
{[%clk 0:01:13.5]} 54... a3 {[%clk 0:02:03.7]} 55. Kd4 {[%clk 0:01:12.4]} 55...
b5 {[%clk 0:01:57.5]} 56. Kc3 {[%clk 0:01:11.7]} 56... Kb6 {[%clk 0:01:57.8]}
57. Kb3 {[%clk 0:01:12.4]} 1-0

[Event "*** Titled Tuesday Blitz AM"]
[Site "Chess.com"]
[Date "2020.01.07"]
[Round "5"]
[White "WelshTiger"]
[Black "MikeSailer"]
[Result "1-0"]
[WhiteElo "2383"]
[BlackElo "2108"]
[TimeControl "180+2"]
[EndTime "10:05:31 PST"]
[Termination "WelshTiger won by resignation"]

1. e4 {[%clk 0:03:01.9]} 1... d5 {[%clk 0:02:51.6]} 2. exd5 {[%clk 0:03:02.4]}
2... Qxd5 {[%clk 0:02:48.7]} 3. Nc3 {[%clk 0:03:03.4]} 3... Qd6 {[%clk
0:02:48.9]} 4. d4 {[%clk 0:03:04.5]} 4... Nf6 {[%clk 0:02:49.6]} 5. Nf3 {[%clk
0:03:05]} 5... c6 {[%clk 0:02:50.9]} 6. Bd3 {[%clk 0:03:04.8]} 6... Bg4 {[%clk
0:02:51.6]} 7. Ne4 {[%clk 0:03:05.8]} 7... Nxe4 {[%clk 0:02:51.7]} 8. Bxe4
{[%clk 0:03:07.2]} 8... Nd7 {[%clk 0:02:50.4]} 9. h3 {[%clk 0:03:00.7]} 9... Bh5
{[%clk 0:02:50.3]} 10. c3 {[%clk 0:02:54.8]} 10... Nf6 {[%clk 0:02:41.1]} 11.
Bd3 {[%clk 0:02:50.8]} 11... e6 {[%clk 0:02:39.5]} 12. O-O {[%clk 0:02:50.9]}
12... Be7 {[%clk 0:02:39.5]} 13. Re1 {[%clk 0:02:47.1]} 13... O-O {[%clk
0:02:39.1]} 14. a3 {[%clk 0:02:37.4]} 14... a5 {[%clk 0:02:28.2]} 15. Be2 {[%clk
0:02:29.5]} 15... c5 {[%clk 0:02:07.9]} 16. Bg5 {[%clk 0:02:23.7]} 16... cxd4
{[%clk 0:02:06.6]} 17. Qxd4 {[%clk 0:02:20.6]} 17... Qxd4 {[%clk 0:02:03.3]} 18.
Nxd4 {[%clk 0:02:20.7]} 18... Bxe2 {[%clk 0:02:03.6]} 19. Rxe2 {[%clk
0:02:22.1]} 19... Rfd8 {[%clk 0:01:55.8]} 20. Nf5 {[%clk 0:02:18.7]} 20... Bxa3
{[%clk 0:01:32.8]} 21. Nh6+ {[%clk 0:02:13.2]} 21... gxh6 {[%clk 0:01:29.6]} 22.
Bxf6 {[%clk 0:02:13.6]} 22... Bxb2 {[%clk 0:01:20.3]} 23. Rxb2 {[%clk
0:02:11.9]} 23... Rd7 {[%clk 0:01:20.6]} 24. Rb5 {[%clk 0:02:11.9]} 24... h5
{[%clk 0:01:10.5]} 25. Rbxa5 {[%clk 0:02:11.1]} 25... Rc8 {[%clk 0:01:12.1]} 26.
Ra8 {[%clk 0:02:11.8]} 26... Rc7 {[%clk 0:01:13.2]} 27. Rxc8+ {[%clk 0:02:12.1]}
27... Rxc8 {[%clk 0:01:14.7]} 28. Kh2 {[%clk 0:02:09.5]} 28... h6 {[%clk
0:01:15.2]} 29. Kg3 {[%clk 0:02:03.2]} 29... Kh7 {[%clk 0:01:16.2]} 30. Rb1
{[%clk 0:01:57.6]} 30... Kg6 {[%clk 0:01:16.6]} 31. Bd4 {[%clk 0:01:55.6]} 31...
Rc7 {[%clk 0:01:16.6]} 32. f4 {[%clk 0:01:42.1]} 32... f6 {[%clk 0:01:08.9]} 33.
Kf3 {[%clk 0:01:41.2]} 33... Rf7 {[%clk 0:00:52.5]} 34. Rb5 {[%clk 0:01:38.9]}
34... e5 {[%clk 0:00:51.4]} 35. Be3 {[%clk 0:01:37.3]} 35... exf4 {[%clk
0:00:45]} 36. Kxf4 {[%clk 0:01:34.7]} 36... Rd7 {[%clk 0:00:39.2]} 37. Bd4
{[%clk 0:01:35.5]} 37... Re7 {[%clk 0:00:30.6]} 38. Rb6 {[%clk 0:01:34.5]} 38...
Rf7 {[%clk 0:00:31.6]} 39. h4 {[%clk 0:01:35.5]} 39... Kg7 {[%clk 0:00:29.9]}
40. Kf5 {[%clk 0:01:36.7]} 40... Rd7 {[%clk 0:00:30.3]} 41. Bxf6+ {[%clk
0:01:36.8]} 41... Kf7 {[%clk 0:00:31.1]} 42. Bd4 {[%clk 0:01:37.5]} 42... Rd5+
{[%clk 0:00:31.6]} 43. Ke4 {[%clk 0:01:35.7]} 1-0

[Event "*** Titled Tuesday Blitz AM"]
[Site "Chess.com"]
[Date "2020.01.07"]
[Round "5"]
[White "Rhinos1"]
[Black "2165149677570"]
[Result "1-0"]
[WhiteElo "2139"]
[BlackElo "2300"]
[TimeControl "180+2"]
[EndTime "10:05:38 PST"]
[Termination "Rhinos1 won by resignation"]

1. d4 {[%clk 0:03:00]} 1... Nf6 {[%clk 0:03:00.6]} 2. Nf3 {[%clk 0:02:57.8]}
2... b6 {[%clk 0:03:01.8]} 3. g3 {[%clk 0:02:58.7]} 3... Bb7 {[%clk 0:03:03.1]}
4. Bg2 {[%clk 0:02:59.4]} 4... e6 {[%clk 0:03:04.6]} 5. O-O {[%clk 0:03:01.2]}
5... c5 {[%clk 0:03:05.3]} 6. dxc5 {[%clk 0:02:57.6]} 6... Bxc5 {[%clk
0:03:07.2]} 7. c4 {[%clk 0:02:59.5]} 7... O-O {[%clk 0:03:08.3]} 8. Nc3 {[%clk
0:02:59.1]} 8... Nc6 {[%clk 0:03:08.8]} 9. Ne5 {[%clk 0:02:47.5]} 9... Nxe5
{[%clk 0:03:08]} 10. Bxb7 {[%clk 0:02:49.1]} 10... Rb8 {[%clk 0:03:09.3]} 11.
Ba6 {[%clk 0:02:48.7]} 11... Qc7 {[%clk 0:03:03.3]} 12. Bf4 {[%clk 0:02:14.8]}
12... d6 {[%clk 0:03:03.7]} 13. a3 {[%clk 0:02:09.8]} 13... Ng6 {[%clk
0:03:04.2]} 14. b4 {[%clk 0:02:03.7]} 14... Nxf4 {[%clk 0:02:56.3]} 15. bxc5
{[%clk 0:01:59]} 15... Nh3+ {[%clk 0:02:36.1]} 16. Kg2 {[%clk 0:01:55.6]} 16...
Ng5 {[%clk 0:02:15.8]} 17. cxd6 {[%clk 0:01:36.1]} 17... Qc6+ {[%clk 0:02:12.4]}
18. f3 {[%clk 0:01:37]} 18... Rfd8 {[%clk 0:01:48.7]} 19. h4 {[%clk 0:01:27.8]}
19... Rxd6 {[%clk 0:01:44.7]} 20. Qc2 {[%clk 0:01:13.7]} 20... Ng4 {[%clk
0:01:33.9]} 21. Qc1 {[%clk 0:00:50]} 21... Ne5 {[%clk 0:00:44.3]} 22. hxg5
{[%clk 0:00:42.2]} 22... Nxc4 {[%clk 0:00:45.3]} 23. Bb5 {[%clk 0:00:33]} 23...
Qc5 {[%clk 0:00:41.4]} 24. Bxc4 {[%clk 0:00:33.1]} 24... Qxc4 {[%clk 0:00:42.5]}
25. Ne4 {[%clk 0:00:33.6]} 25... Qxe2+ {[%clk 0:00:38.4]} 26. Rf2 {[%clk
0:00:33.2]} 1-0

[Event "*** Titled Tuesday Blitz AM"]
[Site "Chess.com"]
[Date "2020.01.07"]
[Round "5"]
[White "politeplayer"]
[Black "yy2324"]
[Result "1-0"]
[WhiteElo "2154"]
[BlackElo "2388"]
[TimeControl "180+2"]
[EndTime "10:05:39 PST"]
[Termination "politeplayer won by resignation"]

1. e4 {[%clk 0:03:01.9]} 1... c5 {[%clk 0:03:00.8]} 2. d4 {[%clk 0:03:02.7]}
2... cxd4 {[%clk 0:03:01.7]} 3. c3 {[%clk 0:03:04.2]} 3... Nf6 {[%clk
0:03:00.2]} 4. e5 {[%clk 0:03:05.6]} 4... Nd5 {[%clk 0:03:01.3]} 5. Nf3 {[%clk
0:03:06.9]} 5... Nc6 {[%clk 0:03:01.5]} 6. Bc4 {[%clk 0:03:07.7]} 6... Nb6
{[%clk 0:03:01.6]} 7. Bb3 {[%clk 0:03:08.2]} 7... d6 {[%clk 0:03:01.7]} 8. exd6
{[%clk 0:03:08.6]} 8... Qxd6 {[%clk 0:03:02.3]} 9. O-O {[%clk 0:03:10]} 9... Be6
{[%clk 0:03:02.4]} 10. Bxe6 {[%clk 0:03:02.1]} 10... Qxe6 {[%clk 0:03:04.3]} 11.
Re1 {[%clk 0:02:59.8]} 11... Qd7 {[%clk 0:03:02.1]} 12. cxd4 {[%clk 0:02:57.9]}
12... e6 {[%clk 0:03:03.3]} 13. Nc3 {[%clk 0:02:55.2]} 13... Be7 {[%clk
0:03:04.2]} 14. Be3 {[%clk 0:02:44]} 14... Nd5 {[%clk 0:03:03.9]} 15. Qb3 {[%clk
0:02:40.9]} 15... Nxe3 {[%clk 0:02:58.3]} 16. Rxe3 {[%clk 0:02:36.9]} 16... O-O
{[%clk 0:02:59.2]} 17. d5 {[%clk 0:02:34.8]} 17... exd5 {[%clk 0:02:54.1]} 18.
Nxd5 {[%clk 0:02:30.9]} 18... Bc5 {[%clk 0:02:52.4]} 19. Rd1 {[%clk 0:02:15.9]}
19... Qg4 {[%clk 0:02:11.2]} 20. h3 {[%clk 0:01:58.3]} 20... Qg6 {[%clk
0:01:39.3]} 21. Rc3 {[%clk 0:01:51.3]} 21... b6 {[%clk 0:01:37.9]} 22. Qa4
{[%clk 0:01:31.2]} 22... Rad8 {[%clk 0:01:18.8]} 23. Rxc5 {[%clk 0:01:04.4]}
23... bxc5 {[%clk 0:01:03.4]} 24. Qxc6 {[%clk 0:01:05.3]} 24... Qxc6 {[%clk
0:01:04.6]} 25. Ne7+ {[%clk 0:01:06.7]} 25... Kh8 {[%clk 0:01:06]} 26. Rxd8
{[%clk 0:01:07.8]} 26... Rxd8 {[%clk 0:00:49.6]} 27. Nxc6 {[%clk 0:01:08]} 27...
Rd1+ {[%clk 0:00:47]} 28. Kh2 {[%clk 0:01:07.5]} 28... Rd7 {[%clk 0:00:38.2]}
29. Nfe5 {[%clk 0:01:06.7]} 29... Rc7 {[%clk 0:00:39.3]} 30. Nd8 {[%clk
0:01:01.4]} 30... f6 {[%clk 0:00:39.2]} 31. Nec6 {[%clk 0:00:47.3]} 31... Kg8
{[%clk 0:00:37.1]} 32. Kg3 {[%clk 0:00:46.9]} 32... Rc8 {[%clk 0:00:37.9]} 33.
Ne7+ {[%clk 0:00:45.4]} 1-0

[Event "*** Titled Tuesday Blitz AM"]
[Site "Chess.com"]
[Date "2020.01.07"]
[Round "5"]
[White "tigra"]
[Black "NZT72"]
[Result "1-0"]
[WhiteElo "2749"]
[BlackElo "2532"]
[TimeControl "180+2"]
[EndTime "10:05:46 PST"]
[Termination "tigra won on time"]

1. e4 {[%clk 0:03:01.9]} 1... e5 {[%clk 0:03:00.3]} 2. Nf3 {[%clk 0:03:00.9]}
2... Nc6 {[%clk 0:03:01.2]} 3. Bc4 {[%clk 0:02:56.9]} 3... Bc5 {[%clk
0:02:59.9]} 4. c3 {[%clk 0:02:56.2]} 4... Nf6 {[%clk 0:03:00.3]} 5. d3 {[%clk
0:02:57.5]} 5... d6 {[%clk 0:02:52.6]} 6. Nbd2 {[%clk 0:02:56.8]} 6... a6 {[%clk
0:02:34.2]} 7. Bb3 {[%clk 0:02:56]} 7... O-O {[%clk 0:02:32.2]} 8. h3 {[%clk
0:02:51.8]} 8... Re8 {[%clk 0:02:16.3]} 9. Nf1 {[%clk 0:02:43.3]} 9... d5 {[%clk
0:02:14.9]} 10. Ng3 {[%clk 0:02:43.7]} 10... dxe4 {[%clk 0:02:13.8]} 11. Ng5
{[%clk 0:02:44.5]} 11... Rf8 {[%clk 0:02:00.5]} 12. N3xe4 {[%clk 0:02:42.4]}
12... Nxe4 {[%clk 0:02:00.2]} 13. Nxe4 {[%clk 0:02:43.9]} 13... Be7 {[%clk
0:01:58.9]} 14. Qf3 {[%clk 0:02:35]} 14... Na5 {[%clk 0:01:45.7]} 15. g4 {[%clk
0:02:29.1]} 15... Nxb3 {[%clk 0:01:45.1]} 16. axb3 {[%clk 0:02:31]} 16... Be6
{[%clk 0:01:42.3]} 17. b4 {[%clk 0:02:28.7]} 17... Qd5 {[%clk 0:01:29]} 18. Rg1
{[%clk 0:02:15.3]} 18... Rad8 {[%clk 0:01:26.6]} 19. Ke2 {[%clk 0:02:09.5]}
19... Kh8 {[%clk 0:00:59.5]} 20. Ra5 {[%clk 0:02:07.4]} 20... Qb3 {[%clk
0:00:48.9]} 21. Rxe5 {[%clk 0:01:51.9]} 21... Qc2+ {[%clk 0:00:26.5]} 22. Bd2
{[%clk 0:01:52.6]} 22... Qxb2 {[%clk 0:00:14.3]} 23. Qe3 {[%clk 0:01:53.4]}
23... Bd6 {[%clk 0:00:12.2]} 24. Nxd6 {[%clk 0:01:53.9]} 24... Rxd6 {[%clk
0:00:10.4]} 25. f4 {[%clk 0:01:48]} 25... Bd7 {[%clk 0:00:06.4]} 26. Re1 {[%clk
0:01:24.3]} 26... f6 {[%clk 0:00:04]} 27. Re7 {[%clk 0:01:24.5]} 27... Kg8
{[%clk 0:00:04.7]} 28. Kf1 {[%clk 0:01:23]} 28... Bb5 {[%clk 0:00:04.5]} 29. Kg1
{[%clk 0:01:16.1]} 29... Bxd3 {[%clk 0:00:03.4]} 30. Rxc7 {[%clk 0:01:03.2]}
30... Bb5 {[%clk 0:00:02.3]} 31. Qe7 {[%clk 0:01:00.3]} 1-0

[Event "*** Titled Tuesday Blitz AM"]
[Site "Chess.com"]
[Date "2020.01.07"]
[Round "5"]
[White "miroslavsavic"]
[Black "TST2014"]
[Result "0-1"]
[WhiteElo "2081"]
[BlackElo "2542"]
[TimeControl "180+2"]
[EndTime "10:05:51 PST"]
[Termination "TST2014 won on time"]

1. Nf3 {[%clk 0:03:01.9]} 1... Nf6 {[%clk 0:02:59.4]} 2. c4 {[%clk 0:03:01.4]}
2... g6 {[%clk 0:02:57.5]} 3. Nc3 {[%clk 0:02:59.3]} 3... Bg7 {[%clk 0:02:58.5]}
4. g3 {[%clk 0:02:54.2]} 4... O-O {[%clk 0:02:58.8]} 5. Bg2 {[%clk 0:02:55.1]}
5... d6 {[%clk 0:02:59.9]} 6. d4 {[%clk 0:02:53.9]} 6... c5 {[%clk 0:03:00.6]}
7. O-O {[%clk 0:02:53.9]} 7... Nc6 {[%clk 0:03:00.6]} 8. b3 {[%clk 0:02:41.9]}
8... cxd4 {[%clk 0:02:48.3]} 9. Nxd4 {[%clk 0:02:41.7]} 9... Nxd4 {[%clk
0:02:38.9]} 10. Qxd4 {[%clk 0:02:41.2]} 10... Ne4 {[%clk 0:02:38.9]} 11. Qxe4
{[%clk 0:02:41.2]} 11... Bxc3 {[%clk 0:02:40]} 12. Bh6 {[%clk 0:02:29.5]} 12...
Bxa1 {[%clk 0:02:25.6]} 13. Bxf8 {[%clk 0:02:27.4]} 13... Qxf8 {[%clk
0:02:19.8]} 14. Rxa1 {[%clk 0:02:24.8]} 14... Qg7 {[%clk 0:02:19.9]} 15. Rd1
{[%clk 0:02:17.4]} 15... Qf6 {[%clk 0:02:19.9]} 16. b4 {[%clk 0:01:57.4]} 16...
Kg7 {[%clk 0:02:18]} 17. c5 {[%clk 0:01:47.2]} 17... dxc5 {[%clk 0:02:13.1]} 18.
bxc5 {[%clk 0:01:47.3]} 18... Rb8 {[%clk 0:02:10.5]} 19. h4 {[%clk 0:01:34.7]}
19... Bf5 {[%clk 0:02:06]} 20. Qb4 {[%clk 0:01:25.2]} 20... b6 {[%clk 0:01:46]}
21. c6 {[%clk 0:01:17.2]} 21... Rc8 {[%clk 0:01:47]} 22. Qa4 {[%clk 0:01:06.1]}
22... a5 {[%clk 0:01:39]} 23. Qb5 {[%clk 0:01:02]} 23... Bg4 {[%clk 0:01:36]}
24. f3 {[%clk 0:00:35.6]} 24... Bf5 {[%clk 0:01:26.3]} 25. Qxb6 {[%clk 0:00:34]}
25... Rxc6 {[%clk 0:01:25.7]} 26. Qxa5 {[%clk 0:00:31]} 26... Ra6 {[%clk
0:01:24.9]} 27. Qd2 {[%clk 0:00:22.5]} 27... Be6 {[%clk 0:01:21.3]} 28. e4
{[%clk 0:00:18.6]} 28... Rxa2 {[%clk 0:01:14.4]} 29. Qd4 {[%clk 0:00:19]} 29...
Bb3 {[%clk 0:01:10.6]} 30. Qxf6+ {[%clk 0:00:17]} 30... Kxf6 {[%clk 0:01:12.5]}
31. Rb1 {[%clk 0:00:15.5]} 31... Bc2 {[%clk 0:01:10.7]} 32. Rb6+ {[%clk
0:00:14.6]} 32... e6 {[%clk 0:01:11.6]} 33. f4 {[%clk 0:00:09.5]} 33... Bd3
{[%clk 0:01:08.9]} 34. e5+ {[%clk 0:00:04.6]} 34... Kf5 {[%clk 0:01:08.2]} 0-1

[Event "*** Titled Tuesday Blitz AM"]
[Site "Chess.com"]
[Date "2020.01.07"]
[Round "5"]
[White "Alexander_Donchenko"]
[Black "ristingho"]
[Result "1-0"]
[WhiteElo "2725"]
[BlackElo "2507"]
[TimeControl "180+2"]
[EndTime "10:05:52 PST"]
[Termination "Alexander_Donchenko won by resignation"]

1. e4 {[%clk 0:03:01.9]} 1... c5 {[%clk 0:02:59.3]} 2. Nf3 {[%clk 0:03:02.7]}
2... d6 {[%clk 0:02:55.7]} 3. Bb5+ {[%clk 0:03:03.2]} 3... Bd7 {[%clk
0:02:54.9]} 4. Bxd7+ {[%clk 0:03:03.5]} 4... Qxd7 {[%clk 0:02:56.3]} 5. c4
{[%clk 0:03:05.1]} 5... Nc6 {[%clk 0:02:56.8]} 6. Nc3 {[%clk 0:03:05.8]} 6...
Nf6 {[%clk 0:02:58.3]} 7. d4 {[%clk 0:03:04.5]} 7... cxd4 {[%clk 0:02:59.6]} 8.
Nxd4 {[%clk 0:03:06.4]} 8... g6 {[%clk 0:03:01.1]} 9. f3 {[%clk 0:03:07.1]} 9...
Bg7 {[%clk 0:03:02.6]} 10. Be3 {[%clk 0:03:08.5]} 10... O-O {[%clk 0:03:04]} 11.
O-O {[%clk 0:03:09.4]} 11... Rfc8 {[%clk 0:03:04.5]} 12. Nde2 {[%clk 0:03:08.5]}
12... a6 {[%clk 0:03:03.7]} 13. Na4 {[%clk 0:03:06.7]} 13... b5 {[%clk
0:02:25.2]} 14. Nb6 {[%clk 0:03:06.4]} 14... Qb7 {[%clk 0:02:13.7]} 15. cxb5
{[%clk 0:03:01.7]} 15... axb5 {[%clk 0:02:14.1]} 16. Qd2 {[%clk 0:02:40.6]}
16... Nd7 {[%clk 0:02:04]} 17. Nxa8 {[%clk 0:02:35.6]} 17... Qxa8 {[%clk
0:02:03]} 18. Rfc1 {[%clk 0:02:27.5]} 18... h5 {[%clk 0:01:58.2]} 19. Nd4 {[%clk
0:02:23.1]} 19... Nxd4 {[%clk 0:01:30.7]} 20. Rxc8+ {[%clk 0:02:18.3]} 20...
Qxc8 {[%clk 0:01:32.6]} 21. Bxd4 {[%clk 0:02:19.5]} 21... Bxd4+ {[%clk
0:01:25.9]} 22. Qxd4 {[%clk 0:02:21.4]} 22... Qc2 {[%clk 0:01:26.9]} 23. Qc3
{[%clk 0:02:15.6]} 23... Qa4 {[%clk 0:01:14.5]} 24. b3 {[%clk 0:02:01.1]} 24...
Qa7+ {[%clk 0:01:04.3]} 25. Kh1 {[%clk 0:02:02.2]} 25... Ne5 {[%clk 0:00:48.6]}
26. a4 {[%clk 0:02:02.3]} 26... bxa4 {[%clk 0:00:48.2]} 27. bxa4 {[%clk
0:02:02.6]} 27... h4 {[%clk 0:00:49.6]} 28. h3 {[%clk 0:01:59.4]} 28... Nd7
{[%clk 0:00:37.4]} 29. a5 {[%clk 0:01:57.5]} 29... Nc5 {[%clk 0:00:35.9]} 30. a6
{[%clk 0:01:56.4]} 30... f6 {[%clk 0:00:17.9]} 31. Qb4 {[%clk 0:01:42.6]} 31...
Kg7 {[%clk 0:00:14]} 32. Qb5 {[%clk 0:01:43]} 32... f5 {[%clk 0:00:07.8]} 33.
exf5 {[%clk 0:01:40.4]} 33... gxf5 {[%clk 0:00:08.7]} 34. Qc4 {[%clk 0:01:40.9]}
34... Kf6 {[%clk 0:00:09.5]} 35. Qxh4+ {[%clk 0:01:40.6]} 35... Ke6 {[%clk
0:00:10.3]} 36. Qc4+ {[%clk 0:01:36.3]} 36... Kf6 {[%clk 0:00:10.6]} 37. Qd5
{[%clk 0:01:24.8]} 37... Nxa6 {[%clk 0:00:10.1]} 38. Qc4 {[%clk 0:01:21.2]}
38... Qf2 {[%clk 0:00:09.2]} 39. Qxa6 {[%clk 0:01:20.6]} 1-0

[Event "*** Titled Tuesday Blitz AM"]
[Site "Chess.com"]
[Date "2020.01.07"]
[Round "5"]
[White "MartinMatthiesen"]
[Black "1stSecond"]
[Result "0-1"]
[WhiteElo "2564"]
[BlackElo "2822"]
[TimeControl "180+2"]
[EndTime "10:05:54 PST"]
[Termination "1stSecond won on time"]

1. d4 {[%clk 0:02:43.7]} 1... Nf6 {[%clk 0:03:00.2]} 2. c4 {[%clk 0:02:43.7]}
2... e6 {[%clk 0:03:01.5]} 3. Nf3 {[%clk 0:02:42.1]} 3... a6 {[%clk 0:03:01]} 4.
Nc3 {[%clk 0:02:37.9]} 4... d5 {[%clk 0:03:01.2]} 5. cxd5 {[%clk 0:02:36.5]}
5... exd5 {[%clk 0:03:03.1]} 6. Bg5 {[%clk 0:02:36.6]} 6... Be6 {[%clk
0:03:04.4]} 7. e3 {[%clk 0:02:34.8]} 7... Nbd7 {[%clk 0:03:04.2]} 8. Bd3 {[%clk
0:02:35.5]} 8... Bd6 {[%clk 0:03:05.1]} 9. O-O {[%clk 0:02:34.6]} 9... c6 {[%clk
0:03:06.3]} 10. Qc2 {[%clk 0:02:21]} 10... Qc7 {[%clk 0:03:05.7]} 11. Bh4 {[%clk
0:02:13.2]} 11... O-O {[%clk 0:03:03]} 12. Bg3 {[%clk 0:02:11.5]} 12... h6
{[%clk 0:02:55.1]} 13. Rfe1 {[%clk 0:02:07.1]} 13... Rfe8 {[%clk 0:02:55.2]} 14.
Rab1 {[%clk 0:02:03.3]} 14... Rac8 {[%clk 0:02:52.7]} 15. b4 {[%clk 0:02:03.1]}
15... b5 {[%clk 0:02:50.8]} 16. e4 {[%clk 0:01:47.6]} 16... Bxg3 {[%clk
0:02:47.7]} 17. hxg3 {[%clk 0:01:47.4]} 17... dxe4 {[%clk 0:02:46.4]} 18. Nxe4
{[%clk 0:01:48.1]} 18... Nxe4 {[%clk 0:02:46.6]} 19. Bxe4 {[%clk 0:01:50]} 19...
Nf6 {[%clk 0:02:47.9]} 20. Bd3 {[%clk 0:01:47.9]} 20... Qd6 {[%clk 0:02:37.9]}
21. a3 {[%clk 0:01:43.1]} 21... Red8 {[%clk 0:02:35.2]} 22. Rbd1 {[%clk
0:01:39.7]} 22... a5 {[%clk 0:02:17.1]} 23. Qb2 {[%clk 0:01:36.8]} 23... axb4
{[%clk 0:02:17.2]} 24. axb4 {[%clk 0:01:37.8]} 24... Nd5 {[%clk 0:02:18.3]} 25.
Rb1 {[%clk 0:01:35.2]} 25... Nb6 {[%clk 0:02:19.5]} 26. Red1 {[%clk 0:01:33.1]}
26... Ra8 {[%clk 0:02:18.5]} 27. Ne5 {[%clk 0:01:31.6]} 27... Ra2 {[%clk
0:02:16.8]} 28. Qc1 {[%clk 0:01:31]} 28... Bd5 {[%clk 0:02:15.9]} 29. Rd2 {[%clk
0:01:19.5]} 29... Rda8 {[%clk 0:02:14.8]} 30. Rxa2 {[%clk 0:01:15.2]} 30... Rxa2
{[%clk 0:02:16.7]} 31. Qc5 {[%clk 0:01:10.8]} 31... Qf6 {[%clk 0:02:08.4]} 32.
Rf1 {[%clk 0:00:59.6]} 32... Qd8 {[%clk 0:02:01.6]} 33. Re1 {[%clk 0:00:56.6]}
33... Qf6 {[%clk 0:01:54.4]} 34. Rf1 {[%clk 0:00:55.1]} 34... Na4 {[%clk
0:01:48.5]} 35. Qa7 {[%clk 0:00:51.5]} 35... g6 {[%clk 0:01:47.2]} 36. Qd7
{[%clk 0:00:46.2]} 36... Nb6 {[%clk 0:01:35.9]} 37. Qc7 {[%clk 0:00:37.6]} 37...
Nc4 {[%clk 0:01:35.4]} 38. Bxc4 {[%clk 0:00:21.4]} 38... bxc4 {[%clk 0:01:37.3]}
39. Qc8+ {[%clk 0:00:19.9]} 39... Kg7 {[%clk 0:01:38.3]} 40. Nd7 {[%clk
0:00:17.8]} 40... Qe7 {[%clk 0:01:37]} 41. b5 {[%clk 0:00:02.3]} 41... cxb5
{[%clk 0:01:34.3]} 0-1